[Event "Amsterdam Chess Open 2024"]
[Site "Amsterdam"]
[Date "2024.11.03"]
[Round "5.29"]
[White "Sourbh Bhadane"]
[Black "Paul Shellard"]
[Result "0-1"]
[ECO "A25"]
[WhiteElo "1200"]
[BlackElo "1550"]
[Annotator "NA RC"]
[PlyCount "90"]
[EventDate "2024.10.31"]
[EventType "swiss"]
[EventCountry "NED"]
[SourceTitle "playchess.com"]
[Source "ChessBase"]
[SourceQuality "1"]
[TimeControl "5400+30"]

1. c4 {[%emt 0:00:03]} e5 {[%emt 0:00:36]} 2. g3 {[%emt 0:00:07]} Nc6 {[%emt 0:00:19]} 3. Bg2 {[%emt 0:00:08]} Bc5 {[%emt 0:00:38]} 4. Nc3 {[%emt 0:00:21]} Nf6 {[%emt 0:02:32]} 5. e3 {[%emt 0:00:20]} O-O {[%emt 0:01:18]} 6. Nge2 {[%emt 0:00:04]} Re8 {[%emt 0:01:20]} 7. O-O {[%emt 0:00:19]} a6 {[%emt 0:04:36]} 8. d4 {[%emt 0:02:39]} exd4 {[%emt 0:01:00]} 9. exd4 {[%emt 0:00:03]} Ba7 {[%emt 0:00:26]} 10. h3 {[%emt 0:00:29]} d6 {[%emt 0:00:30]} 11. Bg5 {[%emt 0:00:17]} h6 {[%emt 0:04:49]} 12. Be3 {[%emt 0:00:15]} Bf5 {[%emt 0:02:22]} 13. g4 {[%emt 0:00:21]} Bxg4 {[%emt 0:13:20]} 14. hxg4 {[%emt 0:03:46]} Nxg4 {[%emt 0:00:01]} 15. Bf4 {[%emt 0:00:54]} g5 {[%emt 0:12:49]} 16. Bh2 {[%emt 0:09:07]} f5 {[%emt 0:05:26]} 17. Qd3 {[%emt 0:02:36]} Qd7 {[%emt 0:01:40]} 18. Rad1 {[%emt 0:11:45]} Ne7 {[%emt 0:05:37]} 19. Qh3 {[%emt 0:04:01]} Kg7 {[%emt 0:01:29]} 20. c5 {[%emt 0:00:15]} d5 {[%emt 0:02:57]} 21. Be5+ {[%emt 0:01:10]} Nxe5 {[%emt 0:00:47]} 22. dxe5 {[%emt 0:00:06]} c6 {[%emt 0:00:36]} 23. b4 {[%emt 0:00:26]} Ng6 {[%emt 0:01:15]} 24. Ng3 {[%emt 0:05:35]} Rxe5 {[%emt 0:01:43]} 25. Nce4 {[%emt 0:02:11]} Nf4 {[%emt 0:04:02]} 26. Nh5+ {[%emt 0:01:26]} Nxh5 {[%emt 0:00:11]} 27. Qxh5 {[%emt 0:00:08]} fxe4 {[%emt 0:00:12]} 28. Bh3 {[%emt 0:00:37]} Qf7 {[%emt 0:00:38]} 29. Qe2 {[%emt 0:00:32]} Rf8 {[%emt 0:00:28]} 30. Qb2 {[%emt 0:00:43]} Qf6 {[%emt 0:00:16]} 31. Rd2 {[%emt 0:02:33]} Re7 {[%emt 0:00:23]} 32. Qc2 {[%emt 0:01:21]} Bb8 {[%emt 0:00:17]} 33. Re1 {[%emt 0:03:43]} Be5 {[%emt 0:00:53]} 34. Rde2 {[%emt 0:02:27]} Bc3 {[%emt 0:00:58]} 35. Rb1 {[%emt 0:00:28]} Ref7 {[%emt 0:00:40]} 36. Bg2 {[%emt 0:01:42]} Bd4 {[%emt 0:00:37]} 37. Rf1 {[%emt 0:00:21]} Qf4 {[%emt 0:01:59]} 38. Qb3 {[%emt 0:00:50]} Be5 {[%emt 0:00:13]} 39. Qh3 {[%emt 0:00:17]} g4 {[%emt 0:01:18]} 40. Qh1 {[%emt 0:01:39]} Rf5 {[%emt 0:00:57]} 41. Re3 {[%emt 0:00:47]} Kg6 {[%emt 0:00:45]} 42. Qh4 {[%emt 0:01:05]} Rh5 {[%emt 0:00:27]} 43. Qg3 {[%emt 0:00:06]} Qf5 {[%emt 0:00:53]} 44. Bxe4 {[%emt 0:02:09]} dxe4 {[%emt 0:00:13]} 45. Qg2 {[%emt 0:00:26]} Bh2+ {[%emt 0:00:54]} 0-1

[Event "Amsterdam Chess Open 2024"]
[Site "Amsterdam"]
[Date "2024.11.03"]
[Round "5.30"]
[White "Tim van Oorschot"]
[Black "Witte, Phoebe"]
[Result "1-0"]
[ECO "C07"]
[WhiteElo "1404"]
[BlackElo "1619"]
[Annotator "NA RC"]
[PlyCount "53"]
[EventDate "2024.10.31"]
[EventType "swiss"]
[EventCountry "NED"]
[SourceTitle "playchess.com"]
[Source "ChessBase"]
[SourceQuality "1"]
[TimeControl "5400+30"]

1. e4 {[%emt 0:00:03]} e6 {[%emt 0:00:08]} 2. d4 {[%emt 0:00:05]} d5 {[%emt 0:00:05]} 3. Nd2 {[%emt 0:00:07]} c5 {[%emt 0:00:08]} 4. Ngf3 {[%emt 0:00:11]} Nc6 {[%emt 0:01:03]} 5. exd5 {[%emt 0:00:14]} Qxd5 {[%emt 0:01:56]} 6. Bc4 {[%emt 0:01:34]} Qd8 {[%emt 0:00:41]} 7. Nb3 {[%emt 0:01:10]} cxd4 {[%emt 0:02:12]} 8. Nbxd4 {[%emt 0:00:30]} Bc5 {[%emt 0:04:44]} 9. Be3 {[%emt 0:06:25]} Qb6 {[%emt 0:06:38]} 10. O-O {[%emt 0:05:17]} Nf6 {[%emt 0:03:26]} 11. Nb5 {[%emt 0:09:04]} O-O {[%emt 0:10:18]} 12. Bxc5 {[%emt 0:01:38]} Qxc5 {[%emt 0:00:54]} 13. Qe2 {[%emt 0:00:39]} Ne7 {[%emt 0:03:01]} 14. Nc3 {[%emt 0:02:11]} Bd7 {[%emt 0:03:52]} 15. Ne5 {[%emt 0:01:28]} Rfd8 {[%emt 0:02:43]} 16. Rad1 {[%emt 0:01:10]} Bc6 {[%emt 0:01:36]} 17. Nxc6 {[%emt 0:03:56]} Qxc6 {[%emt 0:03:06]} 18. Rfe1 {[%emt 0:02:47]} Ng6 {[%emt 0:01:46]} 19. Bb5 {[%emt 0:03:04]} Qc5 {[%emt 0:01:22]} 20. Qf3 {[%emt 0:01:07]} a6 {[%emt 0:02:35]} 21. Rxd8+ {[%emt 0:01:46]} Rxd8 {[%emt 0:00:42]} 22. Bd3 {[%emt 0:00:09]} Qb4 {[%emt 0:03:56]} 23. Rb1 {[%emt 0:05:58]} Ne5 {[%emt 0:02:21]} 24. Qg3 {[%emt 0:01:19]} Nxd3 {[%emt 0:04:22]} 25. cxd3 {[%emt 0:00:09]} Qd6 {[%emt 0:02:15]} 26. Qf3 {[%emt 0:02:09]} Qxd3 {[%emt 0:01:07]} 27. Rd1 {[%emt 0:00:09]} 1-0